bitfinex-derivatives/quotes_BTCF0:USTF0_20250218
["timestamp","ask_amount","ask_price","bid_price","bid_amount"]
[1739896992882,0.3759,94746.0,94742.0,0.00015829]
[1739896993184,0.3608,94743.0,94710.0,0.12841088]
[1739896993389,0.3608,94724.0,94720.0,0.12841088]
[1739896993693,0.3608,94724.0,94714.0,0.12841088]
[1739896993994,0.3608,94724.0,94717.0,0.2112138]
[1739896994185,0.3608,94724.0,94717.0,0.1948729]
[1739896994385,0.3608,94724.0,94714.0,0.12841088]
[1739896994586,0.3608,94724.0,94718.0,0.2112114]
[1739896994785,0.3608,94723.0,94718.0,0.2112114]
[1739896995086,0.3608,94723.0,94714.0,0.12841088]
[1739896995286,0.3608,94723.0,94718.0,0.2112114]
[1739896995682,0.3608,94723.0,94711.0,0.31550363]
[1739896995887,0.3608,94712.0,94711.0,0.31550363]
[1739896996785,0.4089,94722.0,94711.0,0.31550363]
[1739896997385,0.3608,94713.0,94711.0,0.31550363]
[1739896998596,0.3608,94713.0,94710.0,0.01347219]
[1739896998785,0.3608,94713.0,94706.0,0.3608]
[1739896998985,0.4089,94722.0,94707.0,0.14676]
[1739896999194,0.4089,94722.0,94711.0,0.2112272]
[1739896999697,0.3608,94723.0,94710.0,0.12841088]
[1739897000090,0.37389046,94723.0,94710.0,0.12841088]
[1739897000693,0.3608,94723.0,94710.0,0.25682176]
[1739897000894,0.3608,94723.0,94716.0,0.211216]
[1739897001099,0.3608,94723.0,94717.0,0.3874]
[1739897001403,0.3608,94723.0,94718.0,0.1464]
[1739897002298,0.01340861,94730.0,94718.0,0.1464]
[1739897002497,0.01340861,94730.0,94720.0,0.12841088]
[1739897002697,0.01340861,94730.0,94717.0,0.3874]
[1739897002899,0.3608,94721.0,94717.0,0.3874]
[1739897003099,0.3608,94721.0,94718.0,0.14604]
[1739897003299,0.01340861,94730.0,94719.0,0.2112091]
[1739897003490,0.01340861,94730.0,94720.0,0.12841088]
[1739897003686,0.3608,94721.0,94720.0,0.12841088]
[1739897003893,0.3608,94722.0,94719.0,0.2112091]
[1739897004093,0.01340861,94730.0,94719.0,0.2112091]
[1739897004402,0.01340861,94730.0,94717.0,0.3874]
[1739897004698,0.01340861,94730.0,94726.0,0.2111937]
[1739897004897,0.01340861,94730.0,94720.0,0.12841088]
[1739897005098,0.00015829,94730.0,94729.0,0.2111877]
[1739897005393,0.0015836,94743.0,94726.0,0.3893]
[1739897005599,0.0015836,94743.0,94736.0,0.3608]
[1739897005796,0.0015836,94743.0,94733.0,0.33958928]
[1739897006000,0.0015836,94743.0,94734.0,0.397]
[1739897006198,0.014609,94743.0,94734.0,0.397]
[1739897006404,0.0015836,94743.0,94734.0,0.27762548]
[1739897006596,0.0015836,94743.0,94729.0,0.00015838]
[1739897006796,0.2582,94742.0,94729.0,0.00015838]
[1739897006997,0.3608,94730.0,94729.0,0.00015838]
[1739897007392,0.2582,94742.0,94729.0,0.00015838]
[1739897007596,0.3608,94734.0,94730.0,0.12841088]
[1739897007799,0.3608,94734.0,94729.0,0.00015838]
[1739897009205,0.3608,94734.0,94729.0,0.21134438]
[1739897009595,0.3608,94734.0,94731.0,0.211183]
[1739897010005,0.01495675,94743.0,94732.0,0.21118]
[1739897010208,0.01495675,94743.0,94733.0,0.12841088]
[1739897010603,0.01495675,94743.0,94733.0,0.33958898]
[1739897011010,0.01495675,94743.0,94733.0,0.12841088]
[1739897011807,0.01495675,94743.0,94737.0,0.2111697]
[1739897012004,0.01495675,94743.0,94733.0,0.12841088]
[1739897012202,0.01337315,94743.0,94741.0,0.2111604]
[1739897012502,0.3608,94744.0,94741.0,0.2111604]
[1739897012703,0.3608,94744.0,94742.0,0.14456]
[1739897012909,0.37387751,94744.0,94742.0,0.14456]
[1739897013206,0.37387751,94744.0,94736.0,0.2111716]
[1739897013410,0.37387751,94744.0,94733.0,0.12841088]
[1739897015905,0.3608,94736.0,94733.0,0.12841088]
[1739897016115,0.3608,94736.0,94726.0,0.12841088]
[1739897016300,0.3608,94736.0,94721.0,0.92072]
[1739897016502,0.3608,94736.0,94726.0,0.12841088]
[1739897016713,0.3608,94736.0,94721.0,0.92016]
[1739897017118,0.3608,94730.0,94721.0,0.92016]
[1739897021114,0.7216,94730.0,94721.0,0.92016]
[1739897021500,0.7216,94730.0,94717.0,0.00158343]
[1739897021706,0.3608,94718.0,94717.0,0.00158343]
[1739897023013,0.3608,94718.0,94694.0,0.92016]
[1739897023210,0.3608,94718.0,94700.0,0.12841088]
[1739897023418,0.3608,94718.0,94708.0,0.12841088]
[1739897023904,0.3608,94726.0,94708.0,0.46805526]
[1739897024219,0.3608,94726.0,94716.0,0.12841088]
[1739897024513,0.3608,94717.0,94710.0,0.12841088]
[1739897024713,0.3608,94717.0,94700.0,0.12841088]
[1739897024916,0.3608,94717.0,94707.0,0.12841088]
[1739897025819,0.3487,94725.0,94707.0,0.12841088]
[1739897026316,0.3608,94715.0,94707.0,0.12841088]
[1739897026500,0.37356479,94715.0,94707.0,0.12841088]
[1739897026911,0.01276479,94715.0,94707.0,0.12841088]
[1739897027111,0.3487,94725.0,94707.0,0.12841088]
[1739897028910,0.3608,94718.0,94707.0,0.12841088]
[1739897029520,0.3608,94718.0,94700.0,0.12841088]
[1739897030229,0.3608,94707.0,94700.0,0.12841088]
[1739897030717,0.3608,94718.0,94700.0,0.12841088]
[1739897031717,0.3608,94718.0,94708.0,0.12841088]
[1739897032317,0.36159383,94725.0,94709.0,0.7153]
[1739897032627,0.3487,94725.0,94715.0,0.33962928]
[1739897032821,0.3487,94725.0,94716.0,0.2586]
[1739897033017,0.18545506,94729.0,94723.0,0.3608]
[1739897033325,0.3608,94746.0,94723.0,0.5803]
[1739897033523,0.3608,94746.0,94729.0,0.12841088]
[1739897033720,0.3608,94746.0,94723.0,0.5803]
[1739897033926,0.3608,94746.0,94729.0,0.12841088]
[1739897034124,0.01263354,94742.0,94729.0,0.12841088]
[1739897034320,0.3608,94738.0,94729.0,0.12841088]
[1739897034519,0.3608,94738.0,94725.0,0.00015838]
[1739897034520,0.7266,94738.0,94725.0,0.00015838]
[1739897035429,0.3608,94729.0,94725.0,0.00015838]
[1739897036724,0.3494,94728.0,94725.0,0.00015838]
[1739897043533,0.3494,94728.0,94700.0,0.12841088]
[1739897043734,0.3608,94708.0,94700.0,0.12841088]
[1739897043925,0.6375,94707.0,94700.0,0.12841088]
[1739897044126,0.6375,94707.0,94696.0,0.351]
[1739897044425,0.6375,94707.0,94697.0,0.12841088]
[1739897045133,0.00015838,94711.0,94702.0,0.2112471]
[1739897045336,0.01299098,94711.0,94703.0,0.3725]
[1739897045529,0.00015838,94711.0,94703.0,0.3725]
[1739897045926,0.00015838,94711.0,94697.0,0.14098547]
[1739897047034,0.3608,94708.0,94696.0,0.351]
[1739897047241,1.0247,94707.0,94695.0,0.92088]
[1739897047546,1.0247,94707.0,94690.0,0.12841088]
[1739897048230,1.0247,94707.0,94697.0,0.12841088]
[1739897048733,0.3844,94707.0,94697.0,0.12841088]
[1739897048928,0.3844,94707.0,94698.0,0.5935565]
[1739897049332,0.3844,94707.0,94703.0,0.2112452]
[1739897049533,0.00015838,94711.0,94709.0,0.2112317]
[1739897049740,0.00015838,94711.0,94710.0,1.5]
[1739897050034,0.00015838,94711.0,94709.0,0.2112317]
[1739897050350,0.3608,94727.0,94722.0,0.2112017]
[1739897050532,0.3608,94727.0,94723.0,0.3656]
[1739897050733,0.3608,94727.0,94724.0,0.3501985]
[1739897050937,0.3608,94727.0,94724.0,0.22392852]
[1739897051143,0.6057,94738.0,94726.0,0.2111944]
[1739897051435,0.00015838,94735.0,94728.0,0.12841088]
[1739897051636,0.00015838,94735.0,94726.0,0.2579]
[1739897051637,0.3608,94732.0,94726.0,0.2579]
[1739897051836,0.00015838,94735.0,94729.0,0.3608]
[1739897053129,0.00015838,94735.0,94726.0,0.2579]
[1739897053528,0.3608,94733.0,94724.0,0.00056]
[1739897053734,0.3608,94725.0,94710.0,0.12897088]
[1739897053938,0.3519,94724.0,94710.0,0.12841088]
[1739897054439,0.3489,94723.0,94710.0,0.12841088]
[1739897054741,0.3489,94723.0,94715.0,0.572017]
[1739897055037,0.3489,94723.0,94715.0,0.3608]
[1739897055444,0.3489,94723.0,94710.0,0.12841088]
[1739897055946,0.2581,94722.0,94710.0,0.12841088]
[1739897056238,0.3489,94723.0,94719.0,0.2112085]
[1739897056645,0.3489,94723.0,94714.0,0.3608]
[1739897057033,0.3608,94719.0,94710.0,0.12841088]
[1739897057235,0.3608,94719.0,94716.0,0.00715838]
[1739897057541,0.3462,94718.0,94716.0,0.00715838]
[1739897059037,0.18393547,94718.0,94716.0,0.00715838]
[1739897059243,0.19641041,94718.0,94716.0,0.00715838]
[1739897059539,0.19741041,94718.0,94716.0,0.00715838]
[1739897060040,0.18493547,94718.0,94716.0,0.00715838]
[1739897061643,0.001,94718.0,94716.0,0.00715838]
[1739897062937,0.001,94718.0,94716.0,0.21837408]
[1739897063138,0.001,94718.0,94717.0,0.3546]
[1739897063332,0.2581,94733.0,94717.0,0.49312]
[1739897063535,0.3448,94742.0,94729.0,0.3608]
[1739897063734,0.01273391,94738.0,94729.0,0.3608]
[1739897064040,0.3448,94742.0,94729.0,0.3608]
[1739897064246,0.3448,94742.0,94731.0,0.2111819]
[1739897064441,0.3448,94742.0,94732.0,0.2111793]
[1739897064631,0.18742703,94735.0,94731.0,0.01248227]
[1739897065641,0.3608,94734.0,94731.0,0.01248227]
[1739897065943,0.3608,94734.0,94729.0,0.007]
[1739897066136,0.3608,94733.0,94730.0,0.13884]
[1739897066643,0.3608,94733.0,94731.0,0.13876]
[1739897067333,0.3608,94734.0,94731.0,0.13876]
[1739897067740,0.00115838,94735.0,94731.0,0.13876]
[1739897068039,0.00115838,94735.0,94734.0,0.3608]
[1739897068742,0.3608,94752.0,94734.0,0.37382387]
[1739897068940,0.3608,94752.0,94743.0,0.3608]
[1739897069146,0.3608,94752.0,94744.0,0.13876]
[1739897069342,0.3608,94749.0,94722.0,0.3608]
[1739897069536,0.52796865,94748.0,94734.0,0.003]
[1739897069844,0.77146865,94748.0,94738.0,0.12841088]
[1739897071133,0.77146865,94748.0,94733.0,0.3564]
[1739897071846,0.3608,94736.0,94732.0,0.00015838]
[1739897072036,0.3538,94735.0,94732.0,0.00015838]
[1739897072235,0.3538,94735.0,94734.0,0.004]
[1739897072236,0.7146,94735.0,94734.0,0.004]
[1739897072439,0.7146,94735.0,94726.0,0.92012]
[1739897072643,0.3608,94727.0,94726.0,0.92012]
[1739897072861,0.3558,94727.0,94708.0,0.25278412]
[1739897073037,0.3608,94717.0,94708.0,0.25278412]
[1739897074834,0.00015838,94722.0,94712.0,0.3608]
[1739897075037,0.3608,94717.0,94708.0,0.25278412]
[1739897075440,0.00015838,94722.0,94708.0,0.25278412]
[1739897075641,0.00015838,94722.0,94709.0,0.2112307]
[1739897075944,0.00015838,94722.0,94714.0,0.3608]
[1739897076339,0.001,94717.0,94714.0,0.3608]
[1739897076549,0.001,94717.0,94715.0,0.13928]
[1739897076947,0.00115838,94722.0,94716.0,0.3608]
[1739897077545,0.001,94717.0,94716.0,0.3608]
[1739897077744,0.001,94717.0,94716.0,0.49984]
[1739897078655,0.00015838,94722.0,94716.0,0.76314]
[1739897078844,0.00015838,94722.0,94716.0,0.6241]
[1739897079049,0.00015838,94722.0,94720.0,0.2112065]
[1739897079250,0.00015838,94722.0,94714.0,0.01934976]
[1739897079251,0.3608,94721.0,94714.0,0.007]
[1739897079558,0.3536,94720.0,94716.0,0.007]
[1739897080448,0.3536,94720.0,94715.0,0.13892]
[1739897081155,0.3546,94720.0,94716.0,0.14552]
[1739897081357,0.7154,94720.0,94716.0,0.14544]
[1739897082053,0.7154,94720.0,94716.0,0.007]
[1739897082759,0.7154,94720.0,94703.0,0.00015838]
[1739897082956,0.3608,94710.0,94703.0,0.00015838]
[1739897083150,0.6153,94709.0,94703.0,0.00015838]
[1739897084256,0.62790258,94709.0,94703.0,0.00015838]
[1739897084458,0.3608,94705.0,94690.0,0.12841088]
[1739897084654,0.3608,94694.0,94690.0,0.12841088]
[1739897084848,0.3608,94694.0,94682.0,0.3730844]
[1739897085950,0.00015838,94700.0,94683.0,0.2112887]
[1739897086155,0.00015838,94700.0,94690.0,0.12841088]
[1739897086454,0.001,94694.0,94690.0,0.12841088]
[1739897086655,0.001,94694.0,94684.0,0.12841088]
[1739897087056,0.001,94694.0,94686.0,0.2112827]
[1739897087360,0.00015838,94700.0,94686.0,0.2112827]
[1739897087361,0.00115838,94700.0,94690.0,0.3608]
[1739897087562,0.00115838,94700.0,94696.0,0.2112607]
[1739897087859,0.00115838,94700.0,94690.0,0.70048498]
[1739897088048,0.00115838,94700.0,94690.0,0.48921088]
[1739897089260,0.3608,94697.0,94690.0,0.12841088]
[1739897089467,0.001,94694.0,94690.0,0.12841088]
[1739897089656,0.001,94694.0,94685.0,0.2112855]
[1739897089860,0.001,94694.0,94691.0,0.3608]
[1739897090061,0.00115838,94700.0,94692.0,0.1376]
[1739897090262,0.00115838,94700.0,94690.0,0.003]
[1739897090492,0.00115838,94700.0,94690.0,0.13141088]
[1739897090763,0.001,94694.0,94690.0,0.13141088]
[1739897090967,0.001,94694.0,94690.0,0.003]
[1739897091261,0.001,94694.0,94691.0,0.1376]
[1739897092262,0.00115838,94700.0,94692.0,0.3638]
[1739897092855,0.001,94694.0,94692.0,0.3608]
[1739897093068,0.001,94694.0,94693.0,0.4829]
[1739897093355,0.00015838,94700.0,94693.0,0.3455]
[1739897093554,0.00115838,94700.0,94693.0,0.3455]
[1739897094161,0.001,94694.0,94693.0,0.3455]
[1739897096155,0.001,94694.0,94693.0,0.556768]
[1739897096363,0.00115838,94700.0,94695.0,0.2112617]
[1739897096659,0.00115838,94700.0,94696.0,0.3387]
[1739897096859,0.00015838,94700.0,94696.0,0.3387]
[1739897097270,0.17339739,94704.0,94696.0,0.3387]
[1739897097461,0.001,94700.0,94696.0,0.3387]
[1739897099263,0.001,94700.0,94696.0,0.7025]
[1739897099471,0.001,94700.0,94696.0,0.003]
[1739897099664,0.001,94700.0,94697.0,0.13564]
[1739897100971,0.001,94700.0,94697.0,0.13864]
[1739897101567,0.3608,94698.0,94697.0,0.13864]
[1739897102888,0.2502,94699.0,94697.0,0.13828]
[1739897103067,0.001,94700.0,94697.0,0.13828]
[1739897103474,0.3393,94705.0,94697.0,0.13528]
[1739897103775,0.001,94698.0,94697.0,0.003]
[1739897104073,0.3393,94705.0,94697.0,0.13528]
[1739897104268,0.001,94700.0,94697.0,0.003]
[1739897104475,0.001,94700.0,94698.0,0.13528]
[1739897104669,0.3393,94705.0,94698.0,0.13528]
[1739897104866,0.3403,94705.0,94697.0,0.003]
[1739897105168,0.001,94705.0,94697.0,0.003]
[1739897105374,0.001,94705.0,94702.0,0.2112476]
[1739897105574,0.001,94705.0,94698.0,0.3601]
[1739897105870,0.001,94705.0,94698.0,0.7209]
[1739897106463,0.001,94700.0,94698.0,0.7209]
[1739897106667,0.3621,94715.0,94706.0,0.211239]
[1739897106975,0.3608,94716.0,94706.0,0.211239]
[1739897107174,0.3608,94716.0,94699.0,0.3377]
[1739897107771,0.001,94705.0,94703.0,0.2112448]
[1739897108176,0.01262927,94732.0,94700.0,0.3608]
[1739897108373,0.3608,94737.0,94723.0,0.3608]
[1739897108677,0.3608,94747.0,94723.0,0.3608]
[1739897108678,0.01206076,94732.0,94723.0,0.3608]
[1739897108871,0.3608,94747.0,94724.0,0.3606]
[1739897109082,0.01252938,94736.0,94724.0,0.3606]
[1739897110165,0.54706865,94731.0,94724.0,0.3606]
[1739897110667,0.54706865,94731.0,94724.0,0.006]
[1739897110668,0.18726865,94731.0,94724.0,0.006]
[1739897110870,0.54806865,94731.0,94724.0,0.006]
[1739897111070,0.3608,94729.0,94724.0,0.006]
[1739897111277,0.3608,94729.0,94725.0,0.13592]
[1739897112382,0.18726865,94731.0,94725.0,0.49672]
[1739897112569,0.18726865,94731.0,94725.0,0.571995]
[1739897112775,0.18726865,94731.0,94724.0,0.3668]
[1739897112982,0.001,94729.0,94727.0,0.211191]
[1739897113280,0.001,94729.0,94728.0,0.3344]
[1739897113583,0.001,94731.0,94728.0,0.47056]
[1739897113783,0.001,94731.0,94728.0,0.3344]
[1739897114081,0.00015838,94737.0,94728.0,0.3344]
[1739897114274,0.00015838,94737.0,94734.0,0.3608]
[1739897114981,0.00015838,94737.0,94735.0,0.2111743]
[1739897115375,0.18626865,94740.0,94739.0,0.2111654]
[1739897115577,0.70236,94765.0,94749.0,0.2111427]
[1739897115785,0.33786,94765.0,94750.0,1.2937]
[1739897115978,0.3371,94765.0,94750.0,1.2937]
[1739897116181,0.34918793,94765.0,94750.0,1.2937]
[1739897116487,0.3608,94767.0,94753.0,0.2111334]
[1739897116686,0.00015838,94763.0,94754.0,0.2111301]
[1739897116883,0.00015838,94763.0,94750.0,1.29426]
[1739897116884,0.00015838,94763.0,94759.0,0.3608]
[1739897117581,0.00015838,94763.0,94761.0,0.2111147]
[1739897117783,0.18605953,94768.0,94767.0,0.211103]
[1739897118083,0.3608,94786.0,94767.0,1.28092]
[1739897118388,0.7028,94786.0,94775.0,0.3608]
[1739897118587,0.342,94786.0,94775.0,0.3608]
[1739897118776,0.342,94786.0,94770.0,0.12841088]
[1739897118983,0.3608,94778.0,94770.0,0.12841088]
[1739897119181,0.342,94786.0,94770.0,0.12841088]
[1739897119389,0.24744054,94787.0,94780.0,0.3608]
[1739897120379,0.21437197,94781.0,94780.0,0.3608]
[1739897120586,0.21437197,94781.0,94770.0,0.25682176]
[1739897120777,0.21437197,94781.0,94780.0,0.571874]
[1739897120978,0.00015829,94787.0,94780.0,0.3608]
[1739897121289,0.00015829,94787.0,94776.0,0.3608]
[1739897121992,0.00015829,94787.0,94771.0,0.9732]
[1739897122289,0.3608,94783.0,94771.0,0.6124]
[1739897122485,0.3608,94783.0,94771.0,0.262]
[1739897122787,0.3608,94775.0,94772.0,0.13572]
[1739897122988,0.2418,94774.0,94769.0,0.00015829]
[1739897123293,0.3608,94771.0,94769.0,0.00015829]
[1739897123508,0.3607,94770.0,94769.0,0.00015829]
[1739897124686,0.3677,94770.0,94769.0,0.00015829]
[1739897124994,0.007,94770.0,94769.0,0.00015829]
[1739897125392,0.007,94770.0,94769.0,0.21125679]
[1739897125900,0.007,94770.0,94769.0,0.57205679]
[1739897126596,0.00015829,94787.0,94776.0,0.2110822]
[1739897126795,0.00015829,94787.0,94776.0,0.33949308]
[1739897127903,0.00015829,94787.0,94776.0,0.34249308]
[1739897128502,0.00015829,94787.0,94779.0,0.211075]
[1739897128702,0.00015829,94787.0,94780.0,0.2506]
[1739897129315,0.00015829,94787.0,94777.0,0.92044]
[1739897129601,0.00015829,94787.0,94777.0,0.91984]
[1739897130006,0.00015829,94787.0,94777.0,1.04825088]
[1739897130209,0.00015829,94787.0,94780.0,0.002]
[1739897130602,0.00015829,94787.0,94777.0,0.9204]
[1739897130908,0.3608,94780.0,94777.0,0.91984]
[1739897131206,0.3608,94780.0,94778.0,0.13516]
[1739897131805,0.3608,94780.0,94779.0,0.13516]
[1739897133004,0.3608,94780.0,94777.0,0.92044]
[1739897133207,0.2614,94779.0,94778.0,0.1352]
[1739897133920,0.3618,94780.0,94778.0,0.1352]
[1739897134211,0.3618,94780.0,94778.0,0.3462781]
[1739897134507,0.3618,94780.0,94777.0,0.9204]
[1739897134508,0.3618,94780.0,94777.0,0.00056]
[1739897134701,0.3618,94780.0,94778.0,0.13516]
[1739897134904,0.2614,94779.0,94769.0,0.00015829]
[1739897135100,0.3608,94770.0,94769.0,0.00015829]
[1739897135400,0.2614,94779.0,94769.0,0.00015829]
[1739897135605,0.2614,94779.0,94769.0,0.12856917]
[1739897135803,0.3588,94770.0,94769.0,0.12856917]
[1739897136007,0.3588,94770.0,94769.0,0.00015829]
[1739897136518,0.3588,94770.0,94769.0,0.00315829]
[1739897136702,0.3608,94772.0,94769.0,0.00315829]
[1739897136899,0.3608,94772.0,94769.0,0.00015829]
[1739897137100,0.3608,94772.0,94769.0,0.00315829]
[1739897138706,0.005,94770.0,94769.0,0.00015829]
[1739897139317,0.3608,94772.0,94769.0,0.00015829]
[1739897139615,0.3658,94772.0,94769.0,0.00015829]
[1739897140115,0.005,94770.0,94769.0,0.00015829]
[1739897141112,0.005,94770.0,94759.0,0.01232414]
[1739897141113,0.005,94770.0,94754.0,0.91976]
[1739897141305,0.3608,94759.0,94754.0,0.92032]
[1739897143104,0.3648,94759.0,94754.0,0.92032]
[1739897143308,0.3648,94759.0,94757.0,0.2111241]
[1739897143511,0.004,94759.0,94757.0,0.2111241]
[1739897143912,0.004,94759.0,94754.0,0.92032]
[1739897145212,0.3608,94762.0,94754.0,0.92032]
[1739897145403,0.00015829,94768.0,94757.0,0.3608]
[1739897145720,0.00015829,94768.0,94758.0,0.12999327]
[1739897145905,0.00015829,94768.0,94758.0,0.34111487]
[1739897146106,0.00015829,94768.0,94759.0,0.265]
[1739897146909,0.00015829,94768.0,94759.0,0.4761201]
[1739897147613,0.00015829,94768.0,94759.0,0.265]
[1739897148117,0.3608,94763.0,94758.0,0.00158239]
[1739897148614,0.00115829,94768.0,94758.0,0.00158239]
[1739897148813,0.00115829,94768.0,94758.0,0.12999327]
[1739897149014,0.3608,94764.0,94758.0,0.12999327]
[1739897152113,0.3608,94764.0,94758.0,0.13199327]
[1739897152509,0.3608,94764.0,94758.0,0.12999327]
[1739897152707,0.3608,94764.0,94758.0,0.13199327]
[1739897153112,0.3608,94764.0,94758.0,0.12999327]
[1739897153318,0.3608,94764.0,94758.0,0.00358239]
[1739897153516,0.3608,94761.0,94758.0,0.00358239]
[1739897153713,0.2432,94760.0,94758.0,0.00358239]
[1739897155412,0.2472,94760.0,94758.0,0.00158239]
[1739897156219,0.004,94760.0,94758.0,0.00158239]
[1739897156724,0.004,94760.0,94758.0,0.21270449]
[1739897157026,0.00015829,94768.0,94767.0,0.211103]
[1739897158911,0.00076,94789.0,94772.0,0.2110918]
[1739897159118,0.3608,94797.0,94772.0,0.5718918]
[1739897159416,0.00158262,94792.0,94772.0,0.5718918]
[1739897159615,0.00158262,94792.0,94774.0,0.2110856]
[1739897159821,0.00158262,94792.0,94780.0,0.12841088]
[1739897160215,0.00158262,94792.0,94787.0,0.2110578]
[1739897160430,0.00158262,94792.0,94789.0,0.3608]
[1739897160814,0.00158262,94792.0,94789.0,0.37268488]
[1739897161833,0.00858262,94792.0,94789.0,0.37368488]
[1739897162316,0.00158262,94792.0,94789.0,0.37268488]
[1739897162514,0.3608,94790.0,94789.0,0.01188488]
[1739897162722,0.3608,94790.0,94776.0,0.00015829]
[1739897162919,0.3608,94778.0,94776.0,0.00015829]
[1739897163927,0.3745,94788.0,94776.0,0.00015829]
[1739897164120,0.3608,94782.0,94778.0,0.12841088]
[1739897164320,0.3608,94782.0,94776.0,0.00015829]
[1739897165021,0.3608,94779.0,94776.0,0.00015829]
[1739897165421,0.3608,94779.0,94778.0,0.003]
[1739897165923,0.3608,94779.0,94778.0,0.13816]
[1739897166119,0.3608,94779.0,94778.0,0.13516]
[1739897166525,0.3608,94779.0,94776.0,0.00115829]
[1739897166831,0.37299857,94779.0,94776.0,0.00115829]
[1739897167128,0.3608,94779.0,94776.0,0.00115829]
[1739897167728,0.3658,94779.0,94776.0,0.00015829]
[1739897168336,0.3608,94779.0,94776.0,0.00015829]
[1739897168529,0.3668,94779.0,94776.0,0.00115829]
[1739897169031,0.05133304,94778.0,94776.0,0.001]
[1739897169327,0.05133304,94778.0,94754.0,0.3623]
[1739897169539,0.3608,94759.0,94754.0,0.3623]
[1739897170624,0.3598,94759.0,94749.0,0.00015829]
[1739897170823,0.3598,94759.0,94749.0,0.12856917]
[1739897171333,0.3598,94759.0,94758.0,0.01380975]
[1739897171630,0.00076,94767.0,94759.0,0.2111193]
[1739897171829,0.00015829,94768.0,94759.0,0.2111193]
[1739897171830,0.00015829,94768.0,94759.0,0.3712]
[1739897172220,0.00015829,94768.0,94764.0,0.3608]
[1739897172734,0.00015829,94768.0,94766.0,0.2111052]
[1739897173032,0.00015829,94768.0,94765.0,0.6278]
[1739897174144,0.3608,94766.0,94758.0,0.01339175]
[1739897174829,0.3487,94765.0,94758.0,0.01339175]
[1739897175035,0.001,94759.0,94758.0,0.00158239]
[1739897175528,0.001,94759.0,94758.0,0.01351271]
[1739897175726,0.219,94767.0,94764.0,0.2111078]
[1739897175931,0.219,94767.0,94765.0,0.9586]
[1739897176127,0.219,94767.0,94766.0,0.13516]
[1739897176323,0.5798,94767.0,94766.0,0.13516]
[1739897176937,0.9406,94767.0,94766.0,0.13516]
[1739897177438,0.219,94767.0,94766.0,0.13516]
[1739897178228,0.002,94767.0,94766.0,0.13516]
[1739897178637,0.21915829,94768.0,94766.0,0.13516]
[1739897178939,0.002,94767.0,94758.0,0.01371872]
[1739897179233,0.3608,94766.0,94758.0,0.01371872]
[1739897181426,0.3608,94765.0,94758.0,0.00158239]
[1739897182241,0.37257382,94765.0,94758.0,0.00158239]
[1739897184240,0.219,94764.0,94758.0,0.00158239]
[1739897184639,0.3491,94763.0,94758.0,0.00158239]
[1739897184829,0.3491,94763.0,94739.0,0.00158372]
[1739897184830,0.3608,94757.0,94739.0,0.00158372]
[1739897185141,0.219,94762.0,94729.0,0.25278412]
[1739897185142,0.2111707,94737.0,94729.0,0.25278412]
[1739897185340,0.3608,94730.0,94712.0,0.37935591]
[1739897185528,0.3608,94721.0,94712.0,0.37935591]
[1739897185733,0.5798,94721.0,94712.0,0.37935591]
[1739897185936,0.5798,94721.0,94710.0,0.00158373]
[1739897186139,0.3578,94711.0,94710.0,0.00158373]
[1739897186840,0.3578,94711.0,94700.0,0.12841088]
[1739897186841,0.8768,94711.0,94695.0,0.37935591]
[1739897187040,0.3608,94696.0,94686.0,0.00158452]
[1739897187341,0.3608,94687.0,94675.0,0.45405327]
[1739897187533,0.3608,94676.0,94675.0,0.44219899]
[1739897187941,0.3608,94676.0,94675.0,0.65294044]
[1739897188333,0.3578,94676.0,94675.0,0.65294044]
[1739897188639,0.3578,94676.0,94675.0,0.44219899]
[1739897188845,0.3578,94676.0,94675.0,0.65294044]
[1739897189147,0.3578,94676.0,94675.0,0.76154044]
[1739897189148,0.3588,94676.0,94675.0,0.76154044]
[1739897189527,0.001,94676.0,94675.0,0.76154044]
[1739897189734,0.001,94676.0,94675.0,0.31934145]
[1739897189936,0.001,94676.0,94675.0,0.68014145]
[1739897190136,0.001,94676.0,94675.0,2.18014145]
[1739897190831,0.00015838,94685.0,94675.0,2.18014145]
[1739897191036,0.00015838,94685.0,94684.0,0.21074145]
[1739897191336,0.00015838,94685.0,94675.0,0.21438145]
[1739897191543,0.00015838,94685.0,94675.0,0.21374145]
[1739897191734,0.00015838,94685.0,94682.0,0.21074145]
[1739897191935,0.00015838,94685.0,94684.0,0.21074145]
[1739897192134,0.00115838,94685.0,94684.0,0.21074145]
[1739897194543,0.00115838,94685.0,94684.0,0.31634145]
[1739897195543,0.00115838,94685.0,94684.0,0.21074145]
[1739897196550,0.00115838,94685.0,94684.0,0.31634145]
[1739897197649,0.22015838,94685.0,94684.0,0.31634145]
[1739897198449,0.22015838,94685.0,94684.0,0.1577964]
[1739897201242,0.00084,94708.0,94680.0,0.3515]
[1739897201442,0.6075,94724.0,94710.0,0.211229]
[1739897201642,0.6075,94724.0,94723.0,0.0521964]
[1739897201846,0.219,94736.0,94723.0,0.5185564]
[1739897202046,0.18611598,94740.0,94739.0,0.2111654]
[1739897202246,0.18611598,94740.0,94739.0,0.7297218]
[1739897202448,0.18611598,94740.0,94739.0,0.73907759]
[1739897203949,0.00174211,94749.0,94742.0,0.2111581]
[1739897204169,0.3608,94743.0,94730.0,0.00015838]
[1739897204352,0.3588,94733.0,94730.0,0.00015838]
[1739897204654,0.3588,94733.0,94731.0,0.0669]
[1739897205049,0.3588,94733.0,94730.0,0.00015838]
[1739897205050,0.3558,94733.0,94732.0,0.0669]
[1739897205250,0.3558,94733.0,94731.0,0.0669]
[1739897205442,0.3558,94733.0,94732.0,0.0669]
[1739897205649,0.3568,94733.0,94731.0,0.0669]
[1739897206049,0.3568,94733.0,94732.0,0.0669]
[1739897206349,0.3568,94733.0,94730.0,0.00315838]
[1739897206545,0.3568,94733.0,94720.0,0.00158343]
[1739897206546,0.5758,94733.0,94720.0,0.00158343]
[1739897206750,0.3608,94721.0,94720.0,0.00158343]
[1739897207253,0.3568,94721.0,94720.0,0.00158343]
[1739897207960,0.3568,94721.0,94720.0,0.00758343]